Cogmind - Beta 16.1 @@@ ROGUE MODE // 2026.03.15 @ 12:03:38 Player: StaticNoob Result: Destroyed by G-73 Enforcer with Heavy Laser Performance ------------- Evolutions (6) 3000 Regions Visited (16) 3200 Robots Destroyed (325) 1625 Value Destroyed (13004) 13004 Prototype IDs (29) 580 Alien Tech Used (0) 0 Bonus (4699) 4699 TOTAL SCORE: 26108 Bonus ------- High Alert Combat Kills 2672 Follower Combat Kills 2949 Network Hubs Disabled 200 Met Imprinter 300 Was Imprinted 300 Built Enhanced Grunts 300 A7 Reached Mainframe 300 Met R17 at Cetus 500 Friendly Fire -2822 Cogmind --------- Core Integrity 0/1150 Matter 183/300 Energy 142/450 System Corruption 40% Temperature Cool (0) Movement Core (100) Ox1 Location -4/Armory Parts ------- > --- POWER (2) -------- (None) > --- PROPULSION (4) --- (None) > --- UTILITY (9) ------ Energy Well > --- WEAPON (4) ------- (None) > --- INVENTORY (5) ---- Antimatter Reactor Matter Compressor (250) Improved Hacking Suite High-powered Tractor Beam Improved Plasma Cutter Peak State ------------ > --- POWER ------------ Antimatter Reactor Quantum Reactor > --- PROPULSION ------- Improved Treads Medium Treads Medium Treads Centrium Wheel > --- UTILITY ---------- Advanced Cooling System High-capacity Storage Unit Enhanced Optical Array Advanced Signal Interpreter Advanced Targeting Computer Advanced Target Analyzer Core Analyzer Improved Weapon Cycler Centrium Medium Armor Plating > --- WEAPON ----------- Railgun Railgun Railgun Railgun > --- INVENTORY -------- Antimatter Reactor Energy Well Matter Compressor Advanced Sensor Array Advanced Terrain Scan Processor Experimental Thermal Shield Advanced Shield Generator Improved Point Defense System Improved Hacking Suite Improved Hacking Suite High-powered Tractor Beam Mobile Refinery Mk. CCLXVII Z-Drone Bay HERF Cannon Neutron Cannon Railgun Micro-nuke Launcher Improved Plasma Cutter Phasing Sabre [Rating: 118] Favorites ----------- Power Quantum Reactor Engine Improved Deuterium Engine Power Core Neutrino Core Reactor Quantum Reactor Propulsion Armored Huge Wheel Treads Light Treads Leg Myomer Leg Wheel Armored Huge Wheel Hover Unit Antigrav System Utility High-capacity Storage Unit Device Improved Heat Sink Storage High-capacity Storage Unit Processor Core Analyzer Protection Improved Medium Armor Plating Weapon KE Penetrator Energy Gun Heavy Beamcaster Energy Cannon Plasma Cannon Ballistic Gun KE Penetrator Ballistic Cannon Battle Cannon Launcher Subdweller Shrapnel Launcher Special Weapon Plasma Cutter Impact Weapon Great Maul Slashing Weapon Phasing Sabre Build | -11 -10 -10 -8 -7 -7 -7 -7 -6 -6 -6 -6 -6 -6 -5 -4 -4 ------- Run | Yrd Mat Sub Mat Fac Low Low Zio Pro Fac Ext Cet Arc Hub Fac Fac Arm Slots Evolved 12 | . . . 4 2 . . . . 2 . . . . 2 2 . Power 1 | . . . . . . . . . . . . . . . 1 . Propulsion 2 | . . . 1 . . . . . . . . . . 1 . . Utility 7 | . . . 1 2 . . . . 2 . . . . 1 1 . Weapon 2 | . . . 2 . . . . . . . . . . . . . Parts Attached 192 | 6 3 14 31 35 7 2 3 1 17 10 11 2 2 16 25 7 Power 21 | 1 1 2 4 3 2 . . . 1 2 2 . . . 3 . Engine 11 | 1 1 2 1 3 . . . . 1 1 . . . . 1 . Core 7 | . . . 3 . 2 . . . . 1 . . . . 1 . Reactor 3 | . . . . . . . . . . . 2 . . . 1 . Propulsion 42 | 2 . 2 10 7 1 . . 1 1 2 . . 1 7 7 1 Treads 27 | 2 . 2 7 5 . . . 1 . 2 . . . 3 4 1 Leg 1 | . . . . . . . . . . . . . . . 1 . Wheel 12 | . . . 3 2 1 . . . 1 . . . 1 2 2 . Hover 2 | . . . . . . . . . . . . . . 2 . . Flight . | . . . . . . . . . . . . . . . . . Utility 58 | 1 2 3 7 12 1 1 1 . 10 1 4 1 1 3 7 3 Device 28 | . . . 4 6 . . . . 5 . 4 1 . 1 5 2 Storage 8 | 1 1 . 1 1 . . 1 . 1 . . . . . 1 1 Processor 9 | . . . . 3 . . . . 3 1 . . . 1 1 . Hackware . | . . . . . . . . . . . . . . . . . Protection 13 | . 1 3 2 2 1 1 . . 1 . . . 1 1 . . Artifact . | . . . . . . . . . . . . . . . . . Weapon 71 | 2 . 7 10 13 3 1 2 . 5 5 5 1 . 6 8 3 Energy Gun 9 | 1 . 1 1 2 . . 1 . 1 1 1 . . . . . Energy Cannon 4 | . . 1 . . 1 . . . . . 1 . . . . 1 Ballistic Gun 49 | 1 . 2 9 8 2 1 . . 3 4 3 1 . 6 8 1 Ballistic Cannon 2 | . . 2 . . . . . . . . . . . . . . Launcher 3 | . . 1 . 1 . . . . . . . . . . . 1 Special Weapon 1 | . . . . . . . . . 1 . . . . . . . Impact Weapon 1 | . . . . 1 . . . . . . . . . . . . Slashing Weapon 2 | . . . . 1 . . 1 . . . . . . . . . Piercing Weapon . | . . . . . . . . . . . . . . . . . Special Melee Weapon . | . . . . . . . . . . . . . . . . . Unidentified Prototypes 6 | . . . . . . . . . . . 5 . 1 . . . Parts Lost 96 | . 1 7 14 17 6 1 . . 6 4 . . 9 3 5 23 Power 11 | . 1 2 1 2 1 . . . 1 . . . 1 . . 2 Propulsion 20 | . . 2 3 1 1 . . . . . . . 2 2 4 5 Utility 24 | . . 2 3 3 2 1 . . 1 2 . . 1 1 . 8 Weapon 41 | . . 1 7 11 2 . . . 4 2 . . 5 . 1 8 Highest Loss Streak 23 | . 1 2 3 5 3 1 . . 2 2 . . 8 1 2 23 To Critical Strikes 2 | . . . . . . . . . . . . . . . . 2 Average Backups 15 | . 7 9 9 17 16 16 17 18 17 17 17 19 19 16 19 19 Power . | . . . . 1 . 1 1 1 . 1 1 1 1 . . 1 Propulsion 1 | . . 1 1 3 3 3 3 3 2 1 1 1 1 . . . Utility 7 | . 2 1 5 8 7 6 7 8 8 9 10 11 11 9 11 11 Weapon 4 | . 3 6 2 2 4 4 5 5 4 3 4 5 4 5 5 4 Tool/Special . | . . . . . . . . . . . . . . . . . Unused Backups 40 | . 4 1 2 5 1 . . 1 2 6 2 2 2 3 3 6 Power 5 | . 1 . . . . . . 1 . 1 1 . . . . 1 Propulsion 3 | . 1 . . 1 . . . . 1 . . . . . . . Utility 17 | . 1 . 2 2 1 . . . 1 1 1 2 2 . . 4 Weapon 14 | . 1 1 . 2 . . . . . 4 . . . 3 3 . Tool/Special 1 | . . . . . . . . . . . . . . . . 1 Average Slot Usage (%) 93 | . 94 99 95 93 92 92 91 92 91 92 92 93 91 89 98 96 Engine 3 | . 13 13 3 6 . . . . 2 5 . . . . . . Core 1 | . . . 4 . 6 7 7 7 3 . . . . . . . Reactor 2 | . . . . . . . . . . . 5 6 5 5 7 9 Treads 11 | . 28 27 16 11 7 7 7 7 5 6 6 6 5 6 8 9 Wheel 5 | . . . 9 6 7 7 7 7 6 6 6 6 6 5 10 9 Device 11 | . . . 9 16 18 15 14 15 11 12 12 13 12 10 12 14 Storage 7 | . 14 14 9 7 7 7 7 7 6 6 6 6 6 5 5 5 Processor 14 | . . . . 9 7 7 7 7 18 26 26 26 26 25 26 25 Protection 4 | . 8 13 8 2 3 7 7 7 8 . . . . 2 2 . Energy Gun 2 | . 14 . 5 4 5 . 2 7 3 2 4 . . . . . Energy Cannon 1 | . . 8 . . 3 7 3 . . . . . . 1 . . Ballistic Gun 18 | . 14 6 26 20 13 20 14 14 17 22 18 25 24 16 21 18 Ballistic Cannon 1 | . . 11 1 . . . . . . . . . . . . . Slashing Weapon 1 | . . . . . 7 2 6 7 4 . 1 . . 2 . 1 Peak Build Rating 118 | 6 8 11 25 52 57 56 60 61 71 71 94 94 94 90 113 118 Average Rating 56 | 4 6 10 20 39 54 55 56 60 64 64 83 93 87 77 102 108 On Entrance 52 | . 6 8 11 25 50 55 56 60 61 64 70 94 94 40 84 112 Avg Prop Armor Cover (%) 7 | . . . 11 10 5 4 4 4 4 6 7 7 7 9 9 12 Naked Turns . | . . . . . . . . . . . . . . . . . Heaviest Build 110 | 11 17 29 42 71 83 88 88 87 89 76 87 87 87 92 107 110 Greatest Support 56 | 40 40 40 40 28 28 28 28 28 28 28 28 28 28 23 56 32 Greatest Overweight (x) 9 | . . . 3 7 2 3 3 3 3 2 3 3 5 9 6 3 Average Overweight (x) 2 | . . . 1 4 2 2 2 3 2 2 2 3 3 5 2 2 Largest Inventory Capacity 20 | 8 10 10 15 20 20 20 20 20 20 20 20 20 20 20 20 20 Average Capacity 17 | 6 8 10 11 19 20 20 20 20 20 20 20 20 20 20 20 19 Most Carried 20 | 1 10 10 15 20 20 17 20 20 20 20 20 20 20 20 20 20 Average Carried 16 | . 7 9 9 18 18 16 18 20 19 19 18 19 19 16 19 19 Final Capacity 20 | 8 10 10 15 20 20 20 20 20 20 20 20 20 20 20 20 5 Final Carried 20 | 1 10 9 13 20 17 17 20 20 20 20 20 20 17 19 20 5 Class Distribution -------------------- 20% | Scavenger-Gunner 19% | Commander-Gunner 18% | Gunner 10% | Scavenger-Skirmisher 9% | Scavenger-Mutant 8% | Mutant 5% | Scavenger-Tank 4% | Scavenger-Assassin Dominant Class ---------------- Mutant | -10/Materials Scavenger-Mutant | -10/Subcaves Scavenger-Tank | -8/Materials Scavenger-Skirmisher | -7/Factory Gunner | -7/Lower Caves Gunner | -7/Lower Caves Gunner | -7/Zion Gunner | -6/Proximity Caves Scavenger-Gunner | -6/Factory Commander-Gunner | -6/Extension Commander-Gunner | -6/Cetus Commander-Gunner | -6/Archives Commander-Skirmisher | -6/Hub_04(d) Scavenger-Assassin | -5/Factory Scavenger-Gunner | -4/Factory Commander-Gunner | -4/Armory Resources | -11 -10 -10 -8 -7 -7 -7 -7 -6 -6 -6 -6 -6 -6 -5 -4 -4 ----------- Run | Yrd Mat Sub Mat Fac Low Low Zio Pro Fac Ext Cet Arc Hub Fac Fac Arm Matter Collected 11317 | 174 167 606 1419 1679 273 137 115 135 1055 720 282 322 497 797 1505 1434 Remotely 2595 | . . . 264 497 . . . . 93 . . . . 255 851 635 Salvage Created 14576 | . 232 386 2263 2285 368 111 . 109 1477 940 358 278 911 1182 2851 825 Parts 748 | . 21 26 128 139 18 8 . 1 79 42 10 13 29 74 121 39 Haulers Intercepted 18 | . 1 . 5 4 . . . . 3 . . . 2 2 1 . Recyclers Shooed 10 | . . . . 5 . . . . 1 2 . . . . 2 . Parts Field Recycled . | . . . . . . . . . . . . . . . . . Retrieved Matter . | . . . . . . . . . . . . . . . . . Parts Self-Destructed 35 | . . 13 . . 14 7 . 1 . . . . . . . . Prevented 1 | . . . . . 1 . . . . . . . . . . . Parts Restored . | . . . . . . . . . . . . . . . . . Kills | -11 -10 -10 -8 -7 -7 -7 -7 -6 -6 -6 -6 -6 -6 -5 -4 -4 ------- Run | Yrd Mat Sub Mat Fac Low Low Zio Pro Fac Ext Cet Arc Hub Fac Fac Arm Combat Hostiles Destroyed 235 | . 8 14 42 46 6 4 . 5 23 9 4 . 9 19 29 17 Melee 4 | . . . . 1 1 . . . 2 . . . . . . . Guns 187 | . 8 5 42 31 5 3 . 1 18 9 4 . 9 15 29 8 Cannons 11 | . . 6 . . . 1 . . . . . . . 4 . . AOE 31 | . . 3 . 13 . . . 4 3 . . . . . . 8 Classes Destroyed 21 | . 3 1 9 3 1 . . 1 . 1 . . 1 1 . . Worker 20 | . . . 5 6 . . . . 4 . . . . 2 3 . Builder 9 | . . . 1 4 . . . . 3 . . . 1 . . . Tunneler 1 | . . . . . . . . . . . . . . 1 . . Hauler 18 | . 1 . 5 4 . . . . 3 . . . 2 2 1 . Recycler 10 | . . . 1 3 . . . . . 2 . . 1 . 3 . Mechanic 3 | . . . 1 . . . . . . . . . . . 1 1 Operator 8 | . . . 3 . . . . . . . . 5 . . . . Drone 1 | . . . . . . . . 1 . . . . . . . . Watcher 16 | . . . . 2 . . . . 2 1 1 . 3 2 5 . Swarmer 55 | . 6 2 10 15 1 3 . . 7 . . . . 8 . 3 Cutter 1 | . . . . . . . . . . . . . 1 . . . Grunt 79 | . 2 4 21 13 1 . . 3 9 3 . . 5 3 11 4 Brawler 5 | . . . 1 2 1 . . . . . . . . . . 1 Duelist 6 | . . . 1 1 1 . . 1 . . . . . . 1 1 Protector 1 | . . . . 1 . . . . . . . . . . . . Sentry 32 | . . . 8 5 1 . . . 2 5 . . 2 2 6 1 Hunter 18 | . . . 1 4 . 1 . . 3 . . . . . 4 5 Programmer 23 | . . . . 5 . . . . 2 . . . 1 6 7 2 Behemoth 3 | . . . . . 1 . . . . 1 . . . . . 1 Cetus Guard 4 | . . . . . . . . . . . 4 . . . . . Subdweller 8 | . . 8 . . . . . . . . . . . . . . Savage 1 | . . . . . . . . . . . . 1 . . . . Guerrilla 1 | . . . . . . . . . . . . 1 . . . . Fireman 1 | . . . . . . . . . . 1 . . . . . . Best Kill Streak 29 | . 3 2 9 29 5 3 . 4 6 2 4 1 4 4 8 10 Combat Bots Only 22 | . 3 2 7 22 5 3 . 4 4 2 3 . 3 4 6 9 Max Kills in Single Turn 10 | . 2 2 3 10 1 1 . 2 3 1 2 1 2 3 3 5 Gunslinging 1 | . 1 . . 1 . . . . 1 . 1 . 1 1 . 1 Exploded 8 | . . 2 . 8 . . . 2 3 . . . . . . 4 Melee 1 | . . . . 1 1 . . . 1 . . . . . . . Uniques/NPCs Destroyed 1 | . . . . . . . . . . . 1 . . . . . A7 (-6/Cetus) Combat | -11 -10 -10 -8 -7 -7 -7 -7 -6 -6 -6 -6 -6 -6 -5 -4 -4 -------- Run | Yrd Mat Sub Mat Fac Low Low Zio Pro Fac Ext Cet Arc Hub Fac Fac Arm Hostile Shots Fired 1417 | . 37 66 198 268 52 18 . 9 170 113 22 1 73 45 115 230 Missed 436 | . 9 16 57 90 14 6 . 4 66 33 7 . 16 12 32 74 Intercepted 2 | . . . . . . . . . . . . . . . . 2 Hits 981 | . 28 50 141 178 38 12 . 5 104 80 15 1 57 33 83 156 Melee 28 | . . . 4 10 1 . . . . . . . . . . 13 Projectile 953 | . 28 50 137 168 37 12 . 5 104 80 15 1 57 33 83 143 AOE 13 | . . 6 . . . . . . . . . . 1 1 . 5 Critical Strikes 47 | . 1 1 9 4 2 . . . 2 3 4 . 8 1 3 9 Actively Blocked 2 | . 1 . . . 1 . . . . . . . . . . . Part Disruptions 2 | . . . . . . . . . . . . . 2 . . . Damage Taken 17571 | . 281 1207 2148 2444 851 102 . 68 1340 777 339 19 1830 680 1664 3821 Core 2819 | . 8 191 230 231 125 9 . . 212 87 98 . 441 29 218 940 Absorbed by Shields 1332 | . . . . 108 152 31 . 25 210 233 74 . . 18 98 383 Redirected to Shielding 111 | . 7 . . . 53 51 . . . . . . . . . . Ignored by Resistances 441 | . . . 147 . . . . . 96 175 23 . . . . . Regen/Repaired (Parts) 406 | . . . . 47 . . . . 279 . . . . . 80 . Core Remaining (%) 53 | 100 . 20 58 . . . . 47 . . . . 1 97 . . Volleys Fired 668 | 2 23 70 121 101 20 7 . 9 59 38 13 12 26 38 68 61 Largest 4 | 2 2 2 4 4 3 3 . 3 4 4 4 4 4 4 4 4 Hottest 173 | 70 70 113 151 136 160 138 . 134 170 167 173 138 138 143 140 140 Shots Fired 2111 | 4 45 119 419 328 51 22 . 11 188 131 43 48 101 135 271 195 Gun 1988 | 4 45 64 399 322 44 15 . 3 187 131 43 48 101 130 271 181 Cannon 90 | . . 49 19 . 7 7 . . . . . . . 5 . 3 Launcher 33 | . . 6 1 6 . . . 8 1 . . . . . . 11 Special . | . . . . . . . . . . . . . . . . . Kinetic 1836 | 2 23 85 362 274 30 15 . 2 153 126 33 48 101 130 271 181 Thermal 236 | 2 22 34 57 48 14 7 . 1 31 5 10 . . 5 . . Explosive 26 | . . . . 6 . . . 8 1 . . . . . . 11 Electromagnetic 13 | . . . . . 7 . . . 3 . . . . . . 3 Robot Hit Streak 35 | 1 6 23 35 21 24 9 . 11 22 9 10 7 11 19 18 20 Robot Miss Streak 8 | 1 3 3 6 8 1 2 . . 2 5 3 4 4 2 3 6 Penetration Max 2 | . . . . . . 1 . . 1 1 1 1 1 1 1 2 Secondary Targets 45 | . 2 . 8 7 1 . . . 5 3 1 . 2 3 9 4 Max Gunslinging Chain 2 | . 1 . 1 1 1 . . . 2 1 1 . 1 1 1 1 Shots Hit Robots 1423 | 1 27 80 273 223 46 13 . 2 146 99 45 24 63 92 185 104 Core Hits 784 | . 14 26 120 164 20 5 . 13 73 61 24 16 31 39 92 86 Critical Kills 28 | . . . . 1 . . . . . 1 2 2 5 3 13 1 Critical Parts Destroyed 39 | . . . 1 1 . . . . . 1 3 3 5 4 17 4 Critical Strikes 83 | . 2 2 3 3 . . . . 7 3 5 5 10 7 30 6 Burn 10 | . 2 1 1 1 . . . . 5 . . . . . . . Destroy 67 | . . . 1 1 . . . . . 3 5 5 10 7 30 5 Blast 2 | . . 1 1 . . . . . . . . . . . . . Corrupt 1 | . . . . . . . . . . . . . . . . 1 Smash 1 | . . . . 1 . . . . . . . . . . . . Sever 2 | . . . . . . . . . 2 . . . . . . . Melee Attacks 134 | . . . . 47 2 . 1 . 24 7 25 16 . 8 . 4 Impact 44 | . . . . 44 . . . . . . . . . . . . Slashing 90 | . . . . 3 2 . 1 . 24 7 25 16 . 8 . 4 Piercing . | . . . . . . . . . . . . . . . . . Sneak Attacks 20 | . . . . 1 . . . . 1 2 10 2 . 4 . . Combat Hostiles . | . . . . . . . . . . . . . . . . . Follow-up Attacks . | . . . . . . . . . . . . . . . . . Damage Inflicted 36126 | 19 311 1513 4225 5377 999 315 . 442 4093 2223 1597 902 1721 2615 4799 4975 Guns 25874 | 19 299 447 3662 3408 764 162 . 24 2965 2065 962 674 1712 2026 4539 2146 Cannons 1379 | . . 669 81 . 194 153 . . . . . . . 185 . 97 Explosions 6612 | . . 397 464 1714 . . . 418 627 . . . . . 260 2732 Melee 2204 | . . . . 255 41 . . . 497 144 635 228 . 404 . . Ramming 57 | . 12 . 18 . . . . . 4 14 . . 9 . . . Kinetic 24376 | 7 103 1223 3504 2719 467 162 . . 2342 1993 759 674 1712 2026 4539 2146 Thermal 3545 | 12 196 290 703 689 418 153 . 24 600 72 203 . . 185 . . Explosive 5520 | . . . . 1714 . . . 418 396 . . . . . 260 2732 Electromagnetic 424 | . . . . . 73 . . . 254 . . . . . . 97 Impact 179 | . . . . 179 . . . . . . . . . . . . Slashing 2025 | . . . . 76 41 . . . 497 144 635 228 . 404 . . Piercing . | . . . . . . . . . . . . . . . . . Highest Corruption 40 | . . . 6 29 29 29 29 . 1 1 1 1 17 5 8 40 Average Corruption 9 | . . . 1 18 29 29 29 . 1 1 1 1 6 1 3 8 Corruption Purged 1 | . . . . . . . . . . . . 1 . . . . Corruption Blocked . | . . . . . . . . . . . . . . . . . Effects 244 | . . . 7 111 22 26 1 . 3 15 3 . 3 7 16 30 Message Errors 53 | . . . 1 26 6 6 . . . 3 1 . . 2 4 4 Matter Fused 58 | . . . 2 25 3 12 . . . 1 1 . 1 2 4 7 Heat Flow Errors 33 | . . . . 16 6 . 1 . . 4 . . 2 2 1 1 Energy Discharges 16 | . . . . 4 2 3 . . . 1 1 . . . 1 4 Parts Rejected 7 | . . . . 3 . . . . 1 . . . . . 2 1 Parts Fused 2 | . . . . 1 . . . . . 1 . . . . . . Data Loss (minor) 17 | . . . 2 7 1 3 . . . 1 . . . . . 3 Data Loss (major) 12 | . . . . 5 1 . . . . 3 . . . 1 . 2 Misfires 10 | . . . 1 2 . 2 . . 1 . . . . . 2 2 Alerts 6 | . . . . 2 . . . . 1 1 . . . . 2 . Misdirections 3 | . . . . 3 . . . . . . . . . . . . Weapon Failures 27 | . . . 1 17 3 . . . . . . . . . . 6 Overload Shots . | . . . . . . . . . . . . . . . . . Overflow Damage 514 | . . . 157 62 . 3 . . 51 48 9 85 . 86 13 . Projectiles 7 | . . . 4 . . 3 . . . . . . . . . . Explosions 216 | . . . 145 23 . . . . 35 . . . . . 13 . Melee 291 | . . . 8 39 . . . . 16 48 9 85 . 86 . . Knockbacks 7 | . . 6 . . . . . . . . . . 1 . . . Impact 1 | . . . . . . . . . . . . . 1 . . . Kinetic 6 | . . 6 . . . . . . . . . . . . . . Secondary . | . . . . . . . . . . . . . . . . . Self-Inflicted Damage 496 | . . . 157 53 . . . . 87 6 . . 4 . . 189 Shots 8 | . . . 3 1 . . . . 1 . . . . . . 3 Rammed 7 | . 2 . 1 . . . . . 1 2 . . 1 . . . Targets Rammed 7 | . 2 . 1 . . . . . 1 2 . . 1 . . . Kicked . | . . . . . . . . . . . . . . . . . Crushed . | . . . . . . . . . . . . . . . . . Highest Temperature 434 | 40 192 7 345 413 362 300 138 60 386 210 198 114 151 297 434 287 Average Temperature 85 | 20 67 3 106 79 120 117 78 29 93 50 73 41 70 73 107 48 Received Heat Transfer 3614 | . 102 210 1008 446 99 . . 30 481 293 31 . 72 57 213 572 Effects 16 | . . . 4 1 . 3 . . 1 . . . . 1 6 . Shutdowns 4 | . . . . 1 . . . . 1 . . . . . 2 . Energy Bleed 4 | . . . 2 . . . . . . . . . . 1 1 . Interference 8 | . . . 2 . . 3 . . . . . . . . 3 . Siege Activations . | . . . . . . . . . . . . . . . . . Martial Activations . | . . . . . . . . . . . . . . . . . Shielding Activations . | . . . . . . . . . . . . . . . . . Robots Disrupted . | . . . . . . . . . . . . . . . . . Combat Hostiles . | . . . . . . . . . . . . . . . . . Robots Corrupted 3 | . . . 1 1 . . . . . . . . . . . 1 Combat Hostiles 2 | . . . . 1 . . . . . . . . . . . 1 Parts Fried 3 | . . . 1 . . . . . 1 1 . . . . . . Impact Corruptions 2 | . . . 1 1 . . . . . . . . . . . . Robots Melted . | . . . . . . . . . . . . . . . . . Combat Hostiles . | . . . . . . . . . . . . . . . . . Parts Melted 11 | . . 1 2 5 . 1 . . 1 . 1 . . . . . Heat Transferred 7517 | 37 703 592 1556 1703 850 300 . 37 1332 111 296 . . . . . Parts Sabotaged . | . . . . . . . . . . . . . . . . . Parts Stolen . | . . . . . . . . . . . . . . . . . Parts Stripped . | . . . . . . . . . . . . . . . . . Power Chain Reactions . | . . . . . . . . . . . . . . . . . Alert | -11 -10 -10 -8 -7 -7 -7 -7 -6 -6 -6 -6 -6 -6 -5 -4 -4 ------- Run | Yrd Mat Sub Mat Fac Low Low Zio Pro Fac Ext Cet Arc Hub Fac Fac Arm Maximum Alert Level 4 | . . . 3 4 . . . . 2 3 2 1 2 1 3 4 Low Security (%) 32 | 100 100 . 26 . . . . . 32 . . 69 39 88 16 . Level 1 22 | . . . 6 20 . . . . 44 39 . 30 25 11 25 8 Level 2 29 | . . . 19 62 . . . . 23 49 100 . 34 . 7 41 Level 3 11 | . . . 47 2 . . . . . 10 . . . . 50 6 Level 4 4 | . . . . 15 . . . . . . . . . . . 43 Level 5 . | . . . . . . . . . . . . . . . . . High Security . | . . . . . . . . . . . . . . . . . Max Security . | . . . . . . . . . . . . . . . . . Peak Influence 1577 | . 70 . 794 1203 . . . . 564 950 601 398 686 236 979 1577 Initial 529 | . . . 14 358 . . . . 14 274 529 210 . 205 115 477 Average 389 | . 19 . 501 570 . . . . 275 475 548 124 284 114 565 878 Influence Increases 12092 | . 209 185 1582 1737 132 119 . 131 1185 1466 375 312 1098 579 1384 1598 Destroy 0b10 Robot/C 5920 | . 160 120 840 960 120 80 . 80 660 660 160 80 360 380 580 680 Destroy 0b10 Robot/NC 495 | . 5 . 75 105 . . . 10 65 35 10 25 45 35 65 20 Destroy Leader 1230 | . 32 20 220 220 10 20 . 10 180 62 . . 80 88 162 126 Allied During Kill 1799 | . . . . . 2 4 . 31 109 461 170 105 446 . . 471 Successful Hack 184 | . 12 . 72 62 . . . . . 14 . . . 9 15 . Disable Machine 885 | . . . 75 90 . . . . 120 45 15 75 105 45 180 135 Anti-Garrison Action 600 | . . . 200 200 . . . . . . . . . . 200 . Destroy Structure 709 | . . . 70 100 . . . . 51 24 20 27 47 22 182 166 Lose Combat Pursuer 270 | . . 45 30 . . 15 . . . 165 . . 15 . . . Influence Decreases 10691 | . 209 156 823 1326 702 396 352 108 648 1080 795 838 677 764 645 1172 Entered New Map 3224 | . . . 15 430 444 120 352 . 9 286 417 316 . 216 121 498 Time Decay 5321 | . 199 136 522 686 198 246 . 108 439 534 238 482 307 458 474 294 Lost Part 906 | . 10 20 136 170 60 10 . . 60 40 . . 90 30 50 230 Lost Ally 1090 | . . . . 40 . 20 . . 140 220 140 40 280 60 . 150 Purge Threat 150 | . . . 150 . . . . . . . . . . . . . Squads Dispatched 52 | . 1 . 8 13 . . . . 10 1 . . 6 5 4 4 Investigation 11 | . . . 3 2 . . . . 2 1 . . 1 1 1 . Extermination 15 | . . . . 5 . . . . 4 . . . 1 2 2 1 Reinforcement 15 | . 1 . 1 4 . . . . 1 . . . 4 2 1 1 Assault 5 | . . . 1 2 . . . . . . . . . . . 2 Garrison 6 | . . . 3 . . . . . 3 . . . . . . . Intercept . | . . . . . . . . . . . . . . . . . Searches Triggered . | . . . . . . . . . . . . . . . . . Construction Impeded 2 | . . . . . . . . . . . . . 1 . 1 . Haulers Reinforced 4 | . . . . 2 . . . . 1 . . . . 1 . . Active Scanning Responses . | . . . . . . . . . . . . . . . . . Cargo Convoy Interrupts . | . . . . . . . . . . . . . . . . . Stealth | -11 -10 -10 -8 -7 -7 -7 -7 -6 -6 -6 -6 -6 -6 -5 -4 -4 --------- Run | Yrd Mat Sub Mat Fac Low Low Zio Pro Fac Ext Cet Arc Hub Fac Fac Arm Distress Signals 20 | . . . 2 2 . . . . 5 2 2 . 1 . 3 3 Communications Jammed . | . . . . . . . . . . . . . . . . . Distress Signals . | . . . . . . . . . . . . . . . . . Times Spotted 413 | . 9 16 65 54 6 5 . 5 48 36 10 8 39 22 39 51 Peak Tracking Total 16 | . 3 2 6 11 5 3 . 4 5 4 5 2 14 5 6 16 Tactical Retreats 11 | . . 1 2 . . 1 . . . 6 . . 1 . . . Traps | -11 -10 -10 -8 -7 -7 -7 -7 -6 -6 -6 -6 -6 -6 -5 -4 -4 ------- Run | Yrd Mat Sub Mat Fac Low Low Zio Pro Fac Ext Cet Arc Hub Fac Fac Arm Traps Triggered 20 | . . 2 2 8 . . . . . 2 . . 5 . 1 . Indirectly . | . . . . . . . . . . . . . . . . . Trap Hack Attempts . | . . . . . . . . . . . . . . . . . Triggered . | . . . . . . . . . . . . . . . . . Disarmed . | . . . . . . . . . . . . . . . . . Reprogrammed . | . . . . . . . . . . . . . . . . . Reused . | . . . . . . . . . . . . . . . . . Traps Extracted . | . . . . . . . . . . . . . . . . . Installed . | . . . . . . . . . . . . . . . . . Triggered . | . . . . . . . . . . . . . . . . . Machines | -11 -10 -10 -8 -7 -7 -7 -7 -6 -6 -6 -6 -6 -6 -5 -4 -4 ---------- Run | Yrd Mat Sub Mat Fac Low Low Zio Pro Fac Ext Cet Arc Hub Fac Fac Arm Machines Disabled 62 | . . . 5 6 . . . . 8 6 1 5 7 3 12 9 Max in Single Turn 5 | . . . 2 2 . . . . 2 1 1 1 2 1 5 1 Garrison Access 4 | . . . 1 1 . . . . . . . . 1 . 1 . Network Hub 1 | . . . . . . . . . . . . . 1 . . . Machines Repaired . | . . . . . . . . . . . . . . . . . Machines Dismantled 5 | . . . . . . . . . 1 2 1 . 1 . . . Machines Sabotaged . | . . . . . . . . . . . . . . . . . Overloaded Fab Kills . | . . . . . . . . . . . . . . . . . Hacking | -11 -10 -10 -8 -7 -7 -7 -7 -6 -6 -6 -6 -6 -6 -5 -4 -4 --------- Run | Yrd Mat Sub Mat Fac Low Low Zio Pro Fac Ext Cet Arc Hub Fac Fac Arm Machines Accessed 54 | . 4 2 12 12 . . . . 5 6 1 . 1 6 5 . Terminals 22 | . 3 . 9 2 . . . . . 6 1 . . 1 . . Fabricators 4 | . . . . 1 . . . . 1 . . . . 2 . . Repair Stations 3 | . . . . 1 . . . . 1 . . . . . 1 . Recycling Units 11 | . 1 . 1 5 . . . . 2 . . . . . 2 . Scanalyzers 6 | . . . 1 2 . . . . . . . . . 2 1 . Garrison Access 6 | . . . 1 1 . . . . 1 . . . 1 1 1 . Total Hacks 118 | . 11 3 29 20 . . . . 13 11 2 . 1 14 14 . Successful 59 | . 6 3 15 10 . . . . 6 4 . . 1 7 7 . Failed 59 | . 5 . 14 10 . . . . 7 7 2 . . 7 7 . Catastrophic 18 | . 1 . 4 3 . . . . 2 1 2 . . 1 4 . Database Lockouts . | . . . . . . . . . . . . . . . . . Manual 131 | . 8 . 23 8 . . . . 28 17 1 . 24 9 4 9 Terminals 49 | . 8 . 23 4 . . . . . 11 2 . . 1 . . Fabricators 8 | . . . . 2 . . . . 2 . . . . 4 . . Repair Stations 9 | . . . . 2 . . . . 4 . . . . . 3 . Recycling Units 21 | . 3 . 2 7 . . . . 4 . . . . . 5 . Scanalyzers 15 | . . . 2 3 . . . . . . . . . 7 3 . Garrison Access 13 | . . . 2 2 . . . . 3 . . . 1 2 3 . Terminal Hacks 14 | . 3 3 3 . . . . . . 4 . . . 1 . . Record 1 | . . 1 . . . . . . . . . . . . . . Robot Analysis 2 | . 2 . . . . . . . . . . . . . . . Prototype ID Bank 1 | . 1 . . . . . . . . . . . . . . . Open Door 5 | . . 1 . . . . . . . 4 . . . . . . Open DSF 1 | . . . . . . . . . . . . . . 1 . . Branch Access Points 1 | . . . 1 . . . . . . . . . . . . . Unreport Threat 1 | . . . 1 . . . . . . . . . . . . . Zone Layout 1 | . . . 1 . . . . . . . . . . . . . Release Object 1 | . . 1 . . . . . . . . . . . . . . Fabricator Hacks 2 | . . . . 1 . . . . 1 . . . . . . . Network Status 2 | . . . . 1 . . . . 1 . . . . . . . Repair Station Hacks 7 | . . . . . . . . . 4 . . . . . 3 . Scan Component 3 | . . . . . . . . . 2 . . . . . 1 . Repair 3 | . . . . . . . . . 2 . . . . . 1 . Refit 1 | . . . . . . . . . . . . . . . 1 . Recycling Unit Hacks 5 | . 1 . 1 2 . . . . 1 . . . . . . . Retrieve Components 5 | . 1 . 1 2 . . . . 1 . . . . . . . Scanalyzer 12 | . . . 2 2 . . . . . . . . . 5 3 . Insert Component 2 | . . . . . . . . . . . . . . 2 . . Retrieve Study 10 | . . . 2 2 . . . . . . . . . 3 3 . Garrison Access Hacks 1 | . . . . . . . . . . . . . 1 . . . Seal Access 1 | . . . . . . . . . . . . . 1 . . . Unauthorized Hacks 18 | . 2 . 9 5 . . . . . . . . . 1 1 . Terminals 12 | . 2 . 8 2 . . . . . . . . . . . . Assimilate 1 | . . . 1 . . . . . . . . . . . . . Botnet 1 | . . . 1 . . . . . . . . . . . . . Skim 10 | . 2 . 6 2 . . . . . . . . . . . . Fabricators 2 | . . . . 1 . . . . . . . . . 1 . . Liberate 2 | . . . . 1 . . . . . . . . . 1 . . Repair Stations 1 | . . . . 1 . . . . . . . . . . . . Patch 1 | . . . . 1 . . . . . . . . . . . . Recycling Units . | . . . . . . . . . . . . . . . . . Scanalyzers . | . . . . . . . . . . . . . . . . . Garrison Access 3 | . . . 1 1 . . . . . . . . . . 1 . Jam 3 | . . . 1 1 . . . . . . . . . . 1 . Data Cores Recovered 2 | . . . 1 . . . . . . . . . 1 . . . Used . | . . . . . . . . . . . . . . . . . Hacking Detections 41 | . 4 . 11 9 . . . . 4 3 2 . . 4 4 . Full Trace Events 4 | . . . 1 . . . . . 1 1 . . . 1 . . Feedback Events . | . . . . . . . . . . . . . . . . . Feedback Blocked . | . . . . . . . . . . . . . . . . . Robot Schematics Acquired 6 | . . . . . . . 3 . . . . . 3 . . . Robots Built . | . . . . . . . . . . . . . . . . . Authchips . | . . . . . . . . . . . . . . . . . Time . | . . . . . . . . . . . . . . . . . Total Robot Build Rating . | . . . . . . . . . . . . . . . . . Part Schematics Acquired 34 | . . . . . . . 15 . 9 . . . 10 . . . Parts Built . | . . . . . . . . . . . . . . . . . Authchips . | . . . . . . . . . . . . . . . . . Time . | . . . . . . . . . . . . . . . . . Total Part Build Rating . | . . . . . . . . . . . . . . . . . Part Studies Acquired 10 | . . . 2 2 . . . . . . . . . 3 3 . Parts Repaired 3 | . . . . . . . . . 2 . . . . . 1 . Time 162 | . . . . . . . . . 88 . . . . . 74 . Parts Recycled . | . . . . . . . . . . . . . . . . . Recycled Matter . | . . . . . . . . . . . . . . . . . Retrieved Matter . | . . . . . . . . . . . . . . . . . Retrieved Components 22 | . 3 . 9 4 . . . . 6 . . . . . . . Parts Scanalyzed . | . . . . . . . . . . . . . . . . . Part Schematics Acquired . | . . . . . . . . . . . . . . . . . Parts Damaged . | . . . . . . . . . . . . . . . . . Bothacking | -11 -10 -10 -8 -7 -7 -7 -7 -6 -6 -6 -6 -6 -6 -5 -4 -4 ------------ Run | Yrd Mat Sub Mat Fac Low Low Zio Pro Fac Ext Cet Arc Hub Fac Fac Arm Used RIF Installer . | . . . . . . . . . . . . . . . . . Robots Hacked . | . . . . . . . . . . . . . . . . . Non-combat . | . . . . . . . . . . . . . . . . . Combat . | . . . . . . . . . . . . . . . . . Robot Hacks Applied . | . . . . . . . . . . . . . . . . . Relay Couplers Released . | . . . . . . . . . . . . . . . . . Fabnet Peak Effective % . | . . . . . . . . . . . . . . . . . Robots Rewired 33 | . . . . . 1 . . . 1 19 . . . . . 12 Allies Hacked 1 | . . . . 1 . . . . . . . . . . . . Hacks Repelled . | . . . . . . . . . . . . . . . . . Allies | -11 -10 -10 -8 -7 -7 -7 -7 -6 -6 -6 -6 -6 -6 -5 -4 -4 -------- Run | Yrd Mat Sub Mat Fac Low Low Zio Pro Fac Ext Cet Arc Hub Fac Fac Arm Total Allies 77 | . . . 1 3 1 . 4 . 11 31 5 . 3 3 . 15 Largest Group 23 | . . . 1 2 1 1 4 4 4 23 21 16 14 3 . 11 Highest-Rated Group 1119 | . . . 26 74 16 16 153 153 210 865 1119 741 745 210 . 745 Highest-Rated Ally 159 | . . . 26 37 16 16 40 40 85 159 159 96 106 70 . 96 Zionite Dispatches 9 | . . . . . . . . . 3 2 . . 2 1 . 1 Heavy 1 | . . . . . . . . . . . . . 1 . . . Light 3 | . . . . . . . . . 1 . . . . 1 . 1 Recon 1 | . . . . . . . . . . 1 . . . . . . Fire 2 | . . . . . . . . . 2 . . . . . . . Hacker 1 | . . . . . . . . . . 1 . . . . . . Hero 1 | . . . . . . . . . . . . . 1 . . . Total Orders 4 | . . . . . . . . . 1 2 . . . . 1 . STAY 2 | . . . . . . . . . 1 1 . . . . . . ROAM 1 | . . . . . . . . . . 1 . . . . . . EXPLORE 1 | . . . . . . . . . . . . . . . 1 . Ally Attacks 583 | . . . . 12 14 10 . 3 67 166 65 28 87 13 . 118 Total Damage 13027 | . . . . 461 195 92 . 28 1217 2968 1474 585 1680 311 . 4016 Kills 92 | . . . . 4 . . . 1 13 29 5 4 12 . . 24 Allies Corrupted 9 | . . . . 1 . . . . 2 . . . 4 1 . 1 Allies Melted . | . . . . . . . . . . . . . . . . . Intel | -11 -10 -10 -8 -7 -7 -7 -7 -6 -6 -6 -6 -6 -6 -5 -4 -4 ------- Run | Yrd Mat Sub Mat Fac Low Low Zio Pro Fac Ext Cet Arc Hub Fac Fac Arm Active Infowar (turns) 10120 | . . . . 1219 . . . . 966 1511 507 1993 810 1277 1205 632 Optics 8889 | . . . . . . . . . 954 1511 507 1993 810 1277 1205 632 Sensors 4484 | . . . . 1219 . . . . 34 . . . 594 1277 817 543 Terrain 1410 | . . . . . . . . . 234 . . . . 1176 . . Robot Analysis Total 2 | . 2 . . . . . . . . . . . . . . . Derelict Logs Recovered 4 | . . 2 . . 1 1 . . . . . . . . . . Drone Launches 1 | . . . . . . . . . . . . . . . 1 . Drone Recoveries 1 | . . . . . . . . . . . . . . . 1 . Decoded 0b10 Intel 13 | . . . . . . . . . . . . . 13 . . . Garrisons 1 | . . . . . . . . . . . . . 1 . . . Patrols 1 | . . . . . . . . . . . . . 1 . . . Reinforcements 2 | . . . . . . . . . . . . . 2 . . . Guards 9 | . . . . . . . . . . . . . 9 . . . Zionite Intel Received 15 | . . . . . . . . . 4 3 . . 6 1 . 1 Main Access 1 | . . . . . . . . . . . . . . 1 . . Branch Access 1 | . . . . . . . . . . . . . 1 . . . Emergency Access 1 | . . . . . . . . . . 1 . . . . . . Guard Positions 2 | . . . . . . . . . 1 1 . . . . . . Component Stockpiles 1 | . . . . . . . . . . . . . 1 . . . Prototype Stockpiles 1 | . . . . . . . . . . . . . 1 . . . Prototype Schematics 2 | . . . . . . . . . 1 . . . 1 . . . Unaware Schematics 1 | . . . . . . . . . . . . . 1 . . . Unaware Analyses 1 | . . . . . . . . . . 1 . . . . . . Trap Installations 1 | . . . . . . . . . . . . . . . . 1 Active Terminals 1 | . . . . . . . . . 1 . . . . . . . Active Garrisons 1 | . . . . . . . . . 1 . . . . . . . Depthwide Sectors/-1 1 | . . . . . . . . . . . . . 1 . . . Exploration | -11 -10 -10 -8 -7 -7 -7 -7 -6 -6 -6 -6 -6 -6 -5 -4 -4 ------------- Run | Yrd Mat Sub Mat Fac Low Low Zio Pro Fac Ext Cet Arc Hub Fac Fac Arm Turns Passed 20095 | 65 699 2374 1668 2751 406 520 1647 442 1562 1511 507 1993 810 1277 1205 658 Spaces Moved 9801 | 33 342 1292 878 1478 244 351 1115 265 804 723 224 183 443 566 624 236 Core 5 | 2 . . . . . . . . . . . . . . . 3 Treads 1857 | 31 342 1292 128 . . . . . . . . . . 62 2 . Legs . | . . . . . . . . . . . . . . . . . Wheels 7939 | . . . 750 1478 244 351 1115 265 804 723 224 183 443 504 622 233 Hover . | . . . . . . . . . . . . . . . . . Flight . | . . . . . . . . . . . . . . . . . Fastest Speed 50 | 50 160 160 105 125 130 130 130 145 130 130 130 145 130 130 115 100 Average Speed 145 | 153 160 160 132 146 130 140 144 145 135 130 132 145 145 189 132 140 Slowest Speed 400 | 160 160 160 240 175 130 145 145 145 145 130 145 145 175 400 240 150 Overloaded Moves . | . . . . . . . . . . . . . . . . . Propulsion Burnouts . | . . . . . . . . . . . . . . . . . Robots Hopped . | . . . . . . . . . . . . . . . . . Potential Cave-ins 2 | . . . 2 . . . . . . . . . . . . . Cave-ins Triggered . | . . . . . . . . . . . . . . . . . Exploration Rate (%) 52 | 4 56 69 71 46 49 60 90 49 28 75 72 89 43 20 25 38 Regions Visited 16 Branch Regions 10 Pre-discovered Areas 9 | . . . 1 . . . 3 . . . . . 5 . . . Known Exits Taken 10 | . . . 1 1 . . . 1 1 1 1 1 1 1 1 . Unknown Exits Taken 6 | 1 1 1 . . 1 1 1 . . . . . . . . . Scrap Searched 15 | . . 7 . . 3 1 3 1 . . . . . . . . Spaces Dug 100 | . . 5 8 41 . . . . 8 5 15 14 . 3 . 1 Terrain Destroyed 587 | . . 71 68 92 . 1 . 28 46 8 16 26 29 16 85 101 Melee 83 | . . . . 37 . . . . 8 5 15 14 . 3 . 1 Projectile 124 | . . 5 10 . . 1 . . 1 3 1 12 29 13 33 16 AOE 371 | . . 66 58 55 . . . 28 37 . . . . . 48 79 Terrain Rammed . | . . . . . . . . . . . . . . . . . Walls Destroyed . | . . . . . . . . . . . . . . . . . Machines Disabled . | . . . . . . . . . . . . . . . . . Actions | -11 -10 -10 -8 -7 -7 -7 -7 -6 -6 -6 -6 -6 -6 -5 -4 -4 --------- Run | Yrd Mat Sub Mat Fac Low Low Zio Pro Fac Ext Cet Arc Hub Fac Fac Arm Total 13984 | 41 456 1480 1130 1779 288 363 1147 314 1081 1159 347 1858 534 671 882 454 Wait 2441 | . 68 91 65 37 5 3 13 34 140 154 40 1634 30 11 115 1 Move 9785 | 32 341 1291 877 1477 243 350 1114 264 803 722 223 182 442 565 623 236 Hop . | . . . . . . . . . . . . . . . . . Pick Up 112 | 1 14 5 12 25 4 1 2 2 6 8 4 3 2 11 10 2 Fast Attach 105 | 6 1 4 12 15 . . 8 . 11 4 10 2 6 9 14 3 Attach 70 | . 1 7 11 13 6 1 . . 5 4 . . 3 8 5 6 Detach 9 | . . 2 . 1 . . . . 2 1 . . . 2 1 . Swap 162 | . 1 6 16 40 3 1 1 3 13 13 8 4 3 10 23 17 Drop 135 | . 5 4 15 23 2 . 8 2 7 12 14 5 2 9 23 4 Fire 668 | 2 23 70 121 101 20 7 . 9 59 38 13 12 26 38 68 61 Melee 134 | . . . . 47 2 . 1 . 24 7 25 16 . 8 . 4 Ram 4 | . . . 1 . . . . . . 2 . . 1 . . . Kick . | . . . . . . . . . . . . . . . . . Crush 3 | . 2 . . . . . . . 1 . . . . . . . Escape Stasis 32 | . . . . . . . . . . 16 . . 16 . . . Rewire 285 | . . . . . 3 . . . 1 161 . . . . . 120 Trap . | . . . . . . . . . . . . . . . . . Miscellaneous 39 | . . . . . . . . . 9 17 10 . 3 . . . Route ------- -11/Scrapyard -10/Materials (discovered 4 exits: [*Mat] / [*Min x2] / *Sub) -10/Subcaves (discovered 2 exits: *Mat / Rec) -8/Materials (discovered 3 exits: *Fac x3) -7/Factory (discovered 3 exits: Fac x2 / *Low) -7/Lower Caves -7/Lower Caves -7/Zion -6/Proximity Caves -6/Factory (discovered 3 exits: *Low x2 / *Ext) -6/Extension (discovered 2 exits: *Fac / *Cet) -6/Cetus (discovered 2 exits: *Fac / *Arc) -6/Archives (discovered 3 exits: *Fac / *Hub x2) -6/Hub_04(d) (discovered 3 exits: *Fac x3) -5/Factory (discovered 4 exits: *Fac x4) -4/Factory (discovered 4 exits: *Res / *Upp x2 / *Arm) -4/Armory History --------- Turn | Location | Event 24 | -11/Scrapyard | Discovered new exit (range 13) 66 | -11/Scrapyard | Entered Materials 326 | -10/Materials | Discovered new exit (range 8) 331 | -10/Materials | Build established: Mutant 377 | -10/Materials | Discovered new exit (range 7) 487 | -10/Materials | Discovered new exit (range 7) 498 | -10/Materials | Discovered new exit (range 16) 765 | -10/Materials | Entered Subcaves 766 | -10/Subcaves | Shifting Twisted Machinery released Sub. Shrapnel Launcher 766 | -10/Subcaves | Approached by a straggling Scientist 790 | -10/Subcaves | Shifting Twisted Machinery released Sub. Monowheel 858 | -10/Subcaves | Discovered new exit (range 7) 874 | -10/Subcaves | Shifting Twisted Machinery released Battle Rifle 883 | -10/Subcaves | Ambushed by Subdwellers from Twisted Machinery 909 | -10/Subcaves | A swath of the cavern ceiling suddenly collapsed 950 | -10/Subcaves | Core integrity fell below 50% 965 | -10/Subcaves | Learned Materials terminal intel 1471 | -10/Subcaves | Build established: Scavenger-Mutant 1481 | -10/Subcaves | Identified exit to Recycling 1862 | -10/Subcaves | Shifting Twisted Machinery released Shrapnel Trap 2213 | -10/Subcaves | A swath of the cavern ceiling suddenly collapsed 2710 | -10/Subcaves | Shifting Twisted Machinery released Spk. Treads 3139 | -10/Subcaves | Entered Materials 3139 | -8/Materials | Evolved 4 slots: Propulsion x1, Utility x1, Weapon x2 3140 | -8/Materials | Loaded intel: 12 terminal locations 3458 | -8/Materials | Lost 3 parts (1n1u1w) 3535 | -8/Materials | Build established: Tank 3544 | -8/Materials | Garrison activated, responded to threat 3620 | -8/Materials | Destroyed 7 combat bots 3764 | -8/Materials | Discovered new exit (range 13) 3939 | -8/Materials | First assault squad dispatched 3975 | -8/Materials | Build established: Scavenger-Gunner 4222 | -8/Materials | Lost 3 parts (3w) 4324 | -8/Materials | Build established: Scavenger-Tank 4426 | -8/Materials | Identified exit to Factory 4460 | -8/Materials | Learned 4 Factory zone layouts 4500 | -8/Materials | Learned location of 1 exit from Storage 4504 | -8/Materials | Learned location of Lower Caves (-7) 4505 | -8/Materials | Learned Factory interactive machine intel 4508 | -8/Materials | Learned Storage stockpile data 4518 | -8/Materials | Learned Storage trap positions 4779 | -8/Materials | Lost 3 parts (1n1u1w) 4807 | -8/Materials | Entered Factory 4807 | -7/Factory | Evolved 2 slots: Utility x2 4808 | -7/Factory | Identified exit to Factory 4808 | -7/Factory | Identified exit to Lower Caves 4810 | -7/Factory | Loaded intel: 52 interactive machine locations 5244 | -7/Factory | Build established: Scavenger-Skirmisher 6155 | -7/Factory | System corruption reached 10% 6434 | -7/Factory | Lost 5 parts (1n3u1w) 6807 | -7/Factory | First assault squad dispatched 7161 | -7/Factory | Destroyed 22 combat bots 7200 | -7/Factory | Lost 3 parts (1p2w) 7558 | -7/Factory | Entered Lower Caves 7572 | -7/Lower Caves | Attracted the attention of an 0b10 outpost 7666 | -7/Lower Caves | Build established: Gunner 7767 | -7/Lower Caves | Spotted B-75 Beast 7800 | -7/Lower Caves | Core integrity fell below 50% 7804 | -7/Lower Caves | Destroyed B-75 Beast 7821 | -7/Lower Caves | Lost 3 parts (1n1u1w) 7931 | -7/Lower Caves | Discovered new exit (range 8) 7964 | -7/Lower Caves | Entered another Lower Caves area 7964 | -7/Lower Caves | Accompanied by 1 ally 8200 | -7/Lower Caves | Spotted B-75 Beast 8321 | -7/Lower Caves | Learned Factory stockpile data 8464 | -7/Lower Caves | Discovered new exit (range 12) 8484 | -7/Lower Caves | Entered Zion 8524 | -7/Zion | System corruption cleaned by Quarantine Array 8614 | -7/Zion | Discovered new exit (range 16) 8896 | -7/Zion | Found Prototype Device 8930 | -7/Zion | Learned location of Warlord (-5) 8931 | -7/Zion | Received a visual enhancement algorithm 9046 | -7/Zion | Learned location of Data Miner (-6) 9169 | -7/Zion | Found Prototype Device 9732 | -7/Zion | Met Imprinter 9761 | -7/Zion | Imprinted 9764 | -7/Zion | Declared Zion's savior 10131 | -7/Zion | Entered Proximity Caves 10131 | -6/Proximity Caves | Accompanied by 4 allies 10539 | -6/Proximity Caves | Discovered exit to Factory (range 13) 10573 | -6/Proximity Caves | Entered Factory 10573 | -6/Factory | Accompanied by 3 allies 10573 | -6/Factory | Evolved 2 slots: Utility x2 10574 | -6/Factory | Identified exit to Extension 10601 | -6/Factory | Discovered new exit (range 11) 10944 | -6/Factory | Retrieved Zion intel report: Active Terminals 11032 | -6/Factory | Lost 3 allies 11094 | -6/Factory | Garrison activated, responded to threat 11136 | -6/Factory | Retrieved Zion intel report: Active Garrisons 11145 | -6/Factory | Discovered new exit (range 9) 11161 | -6/Factory | Retrieved Zion intel report: Guard Positions 11162 | -6/Factory | Zion Light squad teleported in 11301 | -6/Factory | Build established: Scavenger-Gunner 11309 | -6/Factory | Lost 3 allies 11379 | -6/Factory | Spotted B-75 Beast 11390 | -6/Factory | Zion Fire squad teleported in 11407 | -6/Factory | Rewired B-75 Beast 11613 | -6/Factory | Repaired Gauss Rifle 11659 | -6/Factory | Repaired Med. Treads 11857 | -6/Factory | Identified exit to Lower Caves 11897 | -6/Factory | Retrieved Zion intel report: Prototype Schematics 11898 | -6/Factory | Zion Fire squad teleported in 12092 | -6/Factory | Terminal network hard line cut 12135 | -6/Factory | Entered Extension 12135 | -6/Extension | Accompanied by 2 allies 12341 | -6/Extension | Zion Hacker squad teleported in 12383 | -6/Extension | Rescued a captive Derelict 12492 | -6/Extension | Rescued A7 12510 | -6/Extension | Retrieved Zion intel report: Unaware Analyses 12514 | -6/Extension | Spotted B-75 Beast 12535 | -6/Extension | Spotted B-75 Beast 12557 | -6/Extension | Allies destroyed B-75 Beast 12566 | -6/Extension | Destroyed B-75 Beast 12584 | -6/Extension | Lost 3 allies 12983 | -6/Extension | Rescued a captive Derelict 12983 | -6/Extension | Rescued a captive Derelict 13001 | -6/Extension | Retrieved Zion intel report: Emergency Access 13002 | -6/Extension | Zion Recon squad teleported in 13026 | -6/Extension | Rescued a captive Derelict 13028 | -6/Extension | Rescued a captive Derelict 13182 | -6/Extension | Retrieved Zion intel report: Guard Positions 13200 | -6/Extension | Build established: Commander-Gunner 13301 | -6/Extension | Rescued a captive Derelict 13375 | -6/Extension | Rescued a captive Derelict 13376 | -6/Extension | Rescued a captive Derelict 13466 | -6/Extension | Disrupted transfer network 13503 | -6/Extension | Discovered new exit (range 10) 13505 | -6/Extension | Discovered new exit (range 6) 13511 | -6/Extension | Identified exit to Cetus 13524 | -6/Extension | Terminal network hard line cut 13646 | -6/Extension | Entered Cetus 13646 | -6/Cetus | Accompanied by 20 allies (A7) 13651 | -6/Cetus | Acquired a Cetus Manufacturing Module code from A7 13658 | -6/Cetus | Spotted Cetus Guard 13659 | -6/Cetus | Spotted Cetus Guard 13664 | -6/Cetus | Spotted Cetus Guard 13677 | -6/Cetus | Allies destroyed Cetus Guard 13679 | -6/Cetus | Spotted Cetus Guard 13682 | -6/Cetus | Destroyed Cetus Guard 13685 | -6/Cetus | Allies destroyed Cetus Guard 13691 | -6/Cetus | Allies destroyed Cetus Guard 13711 | -6/Cetus | Lost 4 allies 13799 | -6/Cetus | Started Cetus Manufacturing Module 13809 | -6/Cetus | Escorted A7 to Cetus Mainframe 13814 | -6/Cetus | Discovered new exit (range 22) 13824 | -6/Cetus | Manufactured an Enhanced Grunt 13849 | -6/Cetus | Manufactured an Enhanced Grunt 13863 | -6/Cetus | Identified exit to Archives 13874 | -6/Cetus | Manufactured an Enhanced Grunt 13899 | -6/Cetus | Manufactured an Enhanced Grunt 13922 | -6/Cetus | Spotted Cetus Guard 13923 | -6/Cetus | Spotted Cetus Guard 13924 | -6/Cetus | Manufactured an Enhanced Grunt 13929 | -6/Cetus | Spotted Cetus Guard 13932 | -6/Cetus | Spotted Cetus Guard 13937 | -6/Cetus | Allies destroyed Cetus Guard 13942 | -6/Cetus | Discovered new exit (range 21) 13951 | -6/Cetus | Destroyed Cetus Guard 13955 | -6/Cetus | Destroyed Cetus Guard 13955 | -6/Cetus | Destroyed Cetus Guard 13970 | -6/Cetus | Scared off Revision 17 13978 | -6/Cetus | Lost 3 allies 14025 | -6/Cetus | Murdered A7 14029 | -6/Cetus | Extracted ID and sensor layout for unrecognized location from A7's data core 14057 | -6/Cetus | Found Prototype Device 14057 | -6/Cetus | Identified Exp. Thermal Shield 14153 | -6/Cetus | Entered Archives 14153 | -6/Archives | Accompanied by 17 allies 14172 | -6/Archives | Discovered new exit (range 22) 14230 | -6/Archives | Discovered new exit (range 19) 14303 | -6/Archives | Discovered new exit (range 14) 14320 | -6/Archives | Identified exit to Hub_04(d) 16146 | -6/Archives | Entered Hub_04(d) 16146 | -6/Hub_04(d) | Accompanied by 13 allies 16149 | -6/Hub_04(d) | Zion hero teleported in (12-ASH) 16223 | -6/Hub_04(d) | Retrieved Zion intel report: Depthwide Sectors/-5 16296 | -6/Hub_04(d) | Discovered new exit (range 3) 16299 | -6/Hub_04(d) | Identified exit to Factory 16325 | -6/Hub_04(d) | Retrieved Zion intel report: Prototype Schematics 16497 | -6/Hub_04(d) | Retrieved Zion intel report: Unaware Schematics 16598 | -6/Hub_04(d) | Retrieved Zion intel report: Component Stockpiles 16619 | -6/Hub_04(d) | Discovered exit to Factory (range 20) 16643 | -6/Hub_04(d) | Retrieved Zion intel report: Branch Access 16666 | -6/Hub_04(d) | Discovered exit to Factory (range 15) 16705 | -6/Hub_04(d) | Lost 6 allies 16752 | -6/Hub_04(d) | Retrieved Zion intel report: Prototype Stockpiles 16753 | -6/Hub_04(d) | Zion Heavy squad teleported in 16847 | -6/Hub_04(d) | Network Hub disabled 16851 | -6/Hub_04(d) | Spotted Lightning 16854 | -6/Hub_04(d) | Core integrity fell below 50% 16854 | -6/Hub_04(d) | Spotted Lightning 16856 | -6/Hub_04(d) | Spotted Lightning 16859 | -6/Hub_04(d) | Spotted Lightning 16862 | -6/Hub_04(d) | Spotted Lightning 16864 | -6/Hub_04(d) | Spotted Lightning 16902 | -6/Hub_04(d) | Spotted Lightning 16918 | -6/Hub_04(d) | Lost 8 allies 16921 | -6/Hub_04(d) | Spotted Lightning 16939 | -6/Hub_04(d) | Core integrity fell below 20% 16939 | -6/Hub_04(d) | System corruption reached 10% 16956 | -6/Hub_04(d) | Entered Factory 16956 | -5/Factory | Evolved 2 slots: Propulsion x1, Utility x1 16968 | -5/Factory | Lost 8 parts (1p1n1u5w) 16975 | -5/Factory | Identified exit to DSF 17156 | -5/Factory | Zion Light squad teleported in 17225 | -5/Factory | Build established: Scavenger-Assassin 17279 | -5/Factory | Lost 3 allies 17851 | -5/Factory | Retrieved Zion intel report: Main Access 17851 | -5/Factory | Identified exit to Factory 17888 | -5/Factory | Identified Mobile Refinery Mk. CCLXVII 18079 | -5/Factory | Build established: Scavenger-Skirmisher 18233 | -5/Factory | Entered another Factory area 18233 | -4/Factory | Evolved 2 slots: Power x1, Utility x1 18374 | -4/Factory | Repaired Quantum Reactor 18387 | -4/Factory | Discovered new exit (range 4) 18391 | -4/Factory | Identified exit to Research 18433 | -4/Factory | Build established: Scavenger-Gunner 18604 | -4/Factory | Discovered new exit (range 5) 18613 | -4/Factory | Identified exit to Upper Caves 19089 | -4/Factory | Discovered exit to Upper Caves (range 34) 19283 | -4/Factory | Discovered new exit (range 18) 19437 | -4/Factory | Identified exit to Armory 19438 | -4/Factory | Entered Armory 19784 | -4/Armory | Retrieved Zion intel report: Trap Installations 19785 | -4/Armory | Zion Light squad teleported in 19845 | -4/Armory | Spotted B-86 Titan 19850 | -4/Armory | Destroyed B-86 Titan 19853 | -4/Armory | Lost 3 allies 19938 | -4/Armory | First assault squad dispatched 19970 | -4/Armory | Lost 3 allies 20009 | -4/Armory | Build established: Commander-Gunner 20060 | -4/Armory | System corruption reached 10% 20076 | -4/Armory | Lost 7 allies 20080 | -4/Armory | Core integrity fell below 50% 20085 | -4/Armory | System corruption reached 30% 20091 | -4/Armory | Core integrity fell below 20% 20096 | -4/Armory | Destroyed by G-73 Enforcer with Heavy Laser Last Messages --------------- 20087_ Slug penetrates B-60 Warrior. 20087_ Slug penetrates Recycling Unit. 20089_ O-16 Technician: "IFF HANDSHAKE FAILED. SECURING TERMINAL." 20090_ Slug penetrates B-60 Warrior. 20090_ Unknown Energy Gun tumbles out of recycling unit. 20092_ Slug penetrates B-60 Warrior. 20092_ Micro-nuke Launcher destroyed. 20092_ Adv. Signal Interpreter destroyed. 20092_ System corrupted by crushing effect (+4). 20092_ System corrupted by crushing effect (+5). 20092_ Knocked back. 20092_ Dropped Hcp. Storage Unit. 20094_ Phasing Sabre destroyed. 20095_ ALERT: Hostiles spotted, dispatching reinforcements to Terminal A011. 20095_ Slug penetrates Wall. 20095_ Slug penetrates Y-72 Warden. 20095_ Fabricator disabled. Map ----- +----------------------------------------------------+ | ?????????????????????????????????????????????????? | | ??????????????????????????######?????????????????? | | ?????????????????????????? ?????????????????? | | ?????????????????????????? ?????????????????? | | ??????????????????????????? = #????????????????? | | ??????????????????????????? !=% ###?????????????? | | ??????????^^^??????????????[[[[[ ##????????????? | | ??????????^^^?????????????## *%! ############## | | ??????????????????????????? *[%% == " | | ??????????????????????????? [ ###### | | ???????????????????####+##?# %= #????## #### | | ???????????????????# ?# * [ #?????# #??? | | ???????????????????# # [ [ = ##????# #??? | | ???????????????????# # / * [%* #????#+#??? | | ???????????????????# === # % #???? ????? | | ??????????????#????# === # ! #?""" ???? | | ?????????????? ???# === ### # # """ ????? | | ??????????????? ?# # # "???????? | | ?????????????? # # #?????????? | | ???????????????? " #?????????? | | ???????????????????# g "" % #?????????? | | ???????????????????# g !!"! i ! #?????????? | | ???????????????????####;###!!bg #?????????? | | ????????????????????# g ]!! g + ""??????? | | ????????????????????# !! g ### """ ????? | | ????????????????????# o @ i # #???"" ???? | | ??????????????????#" YY[ ## #???? ????? | | ??????????????????#" [%= ###?????????? | | ??????????????????#"F [ [ ##???????????? | | ??????????????????#"" !**""#????????????? | | ??????????????????### ! !*Y""#????????????? | | ????????????????????# !**###????????????? | | ???????????????????? ??^??????????? | | ??????????????????? ????????????? | | ??????????????????#########;#### ### ???????????? | | ?????????????????????????? ??# #??????????????? | | ?????????????????????????? ??# #??????????????? | | ????????????????????????? ??? #??????????????? | | ????????????^???????????? ??? ???????????????? | | ????????????????????????? ?? ???????????????? | | ???????????????????????????????? ???????????????? | | ???????????????????????????????? ???????????????? | | ?????????????????????????????????????????????????? | | ?????????????????????????????????????????????????? | | ?????????????????????????????????????????????????? | | ?????????????????????????????????????????????????? | | ?????????????????????????????????????????????????? | | ?????????????????????????????????????????????????? | | ?????????????????????????????????????????????????? | | ?????????????????????????????????????????????????? | +----------------------------------------------------+ Best States ------------- Heat Dissipation 74 Coolant Potential 65 Energy Generation 41 Energy Capacity 575 Matter Stores 300 Matter Capacity 300 Sight Range 22 Robot Scan Range 16 Terrain Scan Range 20 Terrain Scan Density 10 Armor Coverage 450 Resistance: TH 30 Resistance: EM 15 Utility Shielding 33 Weapon Shielding 66 Point Defense Rating 160 Weapon Cycling 20 Evasion (%) 40 Targeting Accuracy 28 Target Analysis 8 Core Analysis 6 Recoil Reduction 3 Item Schematics ----------------- Great Axe | -7/Zion | Archive Adv. Signal Interpreter | -7/Zion | Archive Imp. Medium Armor Plating | -7/Zion | Archive Phase Cannon | -7/Zion | Archive Imp. Salvage Targeting Computer | -7/Zion | Archive Fission Core | -7/Zion | Archive Dynamic Insulation System | -7/Zion | Archive Imp. Arc Projector | -7/Zion | Archive Remote Datajack | -7/Zion | Archive Imp. Reaction Control System | -7/Zion | Archive Gauss Cannon | -7/Zion | Archive Phase Shifter | -7/Zion | Archive Imp. Medium Treads | -7/Zion | Archive Force Booster | -7/Zion | Archive Lrn. Phase Cannon | -7/Zion | Archive Hvy. Particle Gun | -6/Factory | Z-intel Prc. Grenade Launcher | -6/Factory | Z-intel Enh. Nuclear Core | -6/Factory | Z-intel Imp. Lightning Gun | -6/Factory | Z-intel Cld. Plasma Cannon | -6/Factory | Z-intel Imp. Airjet | -6/Factory | Z-intel Scatter Rocket Array | -6/Factory | Z-intel Com. Ion Cannon | -6/Factory | Z-intel Imp. Heavy Machine Gun | -6/Factory | Z-intel Thermal Defense Suite | -6/Hub_04(d) | Z-intel Gravity Neutralizer | -6/Hub_04(d) | Z-intel Antimatter Cannon | -6/Hub_04(d) | Z-intel Cld. Aerolev Unit | -6/Hub_04(d) | Z-intel Enh. Autogun | -6/Hub_04(d) | Z-intel Exp. Targeting Computer | -6/Hub_04(d) | Z-intel Cld. Pulse Rifle | -6/Hub_04(d) | Z-intel Cld. Cesium-ion Thruster | -6/Hub_04(d) | Z-intel Imp. Heavy Laser | -6/Hub_04(d) | Z-intel Prc. Assault Rifle | -6/Hub_04(d) | Z-intel Robot Schematics ------------------ Y-54 Guardian | -7/Zion | Archive K-01 Serf | -7/Zion | Archive R-06 Scavenger | -7/Zion | Archive A-15 Conveyor | -6/Hub_04(d) | Z-intel T-07 Excavator | -6/Hub_04(d) | Z-intel S-27 Virus | -6/Hub_04(d) | Z-intel Fabricated ------------ Nothing Repaired ---------- Gauss Rifle | 13% | -6/Factory Med. Treads | 14% | -6/Factory Quantum Reactor | 33% | -4/Factory Studied --------- Assault Rifle | -8/Materials | Hacked Lgt. Nuclear Core | -8/Materials | Hacked Wheel | -7/Factory | Hacked Autogun | -7/Factory | Hacked KE Penetrator | -5/Factory | Hacked Imp. Treads | -5/Factory | Hacked Imp. EM Pulse Cannon | -5/Factory | Hacked Centrium Wheel | -4/Factory | Hacked Neutrino Core | -4/Factory | Hacked Lgt. Angular Momentum Engine | -4/Factory | Hacked Alien Tech Used ----------------- None Achievements -------------- Better Safe Than Exploded Challenges ------------ None Game ------ Seed QuantumEnhancedSystem Manual? 0 Play Time 02:31:06 Cumulative 305.0 hours Start 2026.03.14 @ 21:14:19 End 2026.03.15 @ 12:03:38 Sessions 5 Manual Loads 0 Difficulty Rogue Special Mode None Game No. 234 Rogue 234 Adventurer 0 Explorer 0 Win Type - Total 12 Types 8/0/3/1/0/0/0/0/0/0 Lore% 86 Gallery% 72 Achievement% 61 Wizard Run 0 Options --------- Layout 1 ASCII 0 Keyboard 0 Movement Numpad Keybinds 0 Fullscreen 1 Font 24/Smallcaps Map View 50x35 Zoom Use 0% Tactical HUD 1 Map Filters NONE Filters NONE Steam 1 RUN: 948c02e5-7f3a-41e2-a181-69249ceb7463